[Event "Turkish Club Cup 2019"]
[Site "Konya"]
[Date "2019.07.19"]
[Round "6"]
[White "Cakiroglu, Metin"]
[Black "Aslan, Dogukan"]
[Result "1/2-1/2"]
[ECO "B37"]
[WhiteElo "1970"]
[BlackElo "1806"]
[Annotator "NA"]
[PlyCount "60"]
[EventDate "2019.07.16"]
[EventType "team-tourn"]
[EventCountry "TUR"]
[SourceTitle "playchess.com"]
[Source "ChessBase"]
[SourceQuality "1"]
[TimeControl "5400+30"]

1. c4 {[%emt 0:00:30]} c5 {[%emt 0:00:30]} 2. Nf3 {[%emt 0:00:00]} Nc6 {[%emt 0:01:30]} 3. d4 {[%emt 0:02:00]} cxd4 {[%emt 0:00:30]} 4. Nxd4 {[%emt 0:00:00]} g6 {[%emt 0:00:00]} 5. Nc3 {[%emt 0:01:00]} Bg7 {[%emt 0:00:00]} 6. Nc2 {[%emt 0:00:00]} Nf6 {[%emt 0:01:30]} 7. e4 {[%emt 0:00:00]} d6 {[%emt 0:00:30]} 8. Be2 {[%emt 0:00:30]} O-O {[%emt 0:00:30]} 9. O-O {[%emt 0:00:00]} Bd7 {[%emt 0:02:30]} 10. Rb1 {[%emt 0:01:00]} Rc8 {[%emt 0:04:30]} 11. Re1 {[%emt 0:07:30]} a6 {[%emt 0:03:30]} 12. Ne3 {[%emt 0:01:30]} Na7 {[%emt 0:18:30]} 13. Ned5 {[%emt 0:06:30]} Nxd5 {[%emt 0:03:30]} 14. Nxd5 {[%emt 0:05:30]} e6 {[%emt 0:13:30]} 15. Nc3 {[%emt 0:06:30]} Qc7 {[%emt 0:01:30]} 16. Bg5 {[%emt 0:14:30]} Nc6 {[%emt 0:03:30]} 17. Qd2 {[%emt 0:02:30]} Nd4 {[%emt 0:07:30]} 18. Bf1 {[%emt 0:01:30]} Bc6 {[%emt 0:02:30]} 19. Rbc1 {[%emt 0:06:30]} e5 {[%emt 0:04:30]} 20. Nd5 {[%emt 0:03:30]} Bxd5 {[%emt 0:01:30]} 21. cxd5 {[%emt 0:01:30]} Qd7 {[%emt 0:00:30]} 22. Be3 {[%emt 0:02:30]} Rxc1 {[%emt 0:00:30]} 23. Rxc1 {[%emt 0:00:00]} Rc8 {[%emt 0:00:30]} 24. Bxd4 {[%emt 0:00:00]} exd4 {[%emt 0:00:30]} 25. Rxc8+ {[%emt 0:00:30]} Qxc8 {[%emt 0:00:30]} 26. Bd3 {[%emt 0:00:30]} Qc7 {[%emt 0:00:00]} 27. Qc2 {[%emt 0:02:30]} Qxc2 {[%emt 0:00:00]} 28. Bxc2 {[%emt 0:00:00]} Kf8 {[%emt 0:00:00]} 29. Bd3 {[%emt 0:00:00]} a5 {[%emt 0:00:00]} 30. Kf1 {[%emt 0:00:30]} b6 {[%emt 0:00:00]} 1/2-1/2

[Event "Turkish Club Cup 2019"]
[Site "Konya"]
[Date "2019.07.19"]
[Round "6"]
[White "Ozturkler, Baris"]
[Black "Aysoy, Veysi"]
[Result "1/2-1/2"]
[ECO "B01"]
[WhiteElo "1966"]
[BlackElo "1881"]
[Annotator "NA"]
[PlyCount "87"]
[EventDate "2019.07.16"]
[EventType "team-tourn"]
[EventCountry "TUR"]
[SourceTitle "playchess.com"]
[Source "ChessBase"]
[SourceQuality "1"]
[TimeControl "5400+30"]

1. e4 {[%emt 0:00:30]} d5 {[%emt 0:00:30]} 2. exd5 {[%emt 0:00:30]} Nf6 {[%emt 0:00:30]} 3. d4 {[%emt 0:00:30]} Nxd5 {[%emt 0:00:30]} 4. c4 {[%emt 0:00:30]} Nb6 {[%emt 0:00:30]} 5. Nf3 {[%emt 0:00:00]} g6 {[%emt 0:00:30]} 6. Nc3 {[%emt 0:00:00]} Bg7 {[%emt 0:00:30]} 7. c5 {[%emt 0:00:30]} Nd5 {[%emt 0:01:30]} 8. Bc4 {[%emt 0:00:30]} Nxc3 {[%emt 0:00:30]} 9. bxc3 {[%emt 0:00:30]} O-O {[%emt 0:01:30]} 10. O-O {[%emt 0:00:00]} Nc6 {[%emt 0:05:30]} 11. Re1 {[%emt 0:00:00]} Bg4 {[%emt 0:05:30]} 12. Bg5 {[%emt 0:01:30]} Bf6 {[%emt 0:03:30]} 13. Bxf6 {[%emt 0:06:30]} exf6 {[%emt 0:02:30]} 14. h3 {[%emt 0:00:30]} Bxf3 {[%emt 0:09:30]} 15. Qxf3 {[%emt 0:01:30]} Na5 {[%emt 0:01:30]} 16. Bf1 {[%emt 0:03:30]} Kg7 {[%emt 0:01:30]} 17. Rab1 {[%emt 0:03:30]} Re8 {[%emt 0:06:30]} 18. Bb5 {[%emt 0:13:30]} c6 {[%emt 0:06:30]} 19. Bd3 {[%emt 0:03:30]} Qd7 {[%emt 0:03:30]} 20. g4 {[%emt 0:05:30]} Rab8 {[%emt 0:15:30]} 21. Re3 {[%emt 0:07:30]} Re6 {[%emt 0:05:30]} 22. Rbe1 {[%emt 0:02:30]} Rbe8 {[%emt 0:01:30]} 23. R1e2 {[%emt 0:14:30]} R8e7 {[%emt 0:04:30]} 24. a3 {[%emt 0:10:30]} Rxe3 {[%emt 0:07:49]} 25. fxe3 {[%emt 0:03:30]} Nb3 {[%emt 0:02:12]} 26. Bc4 {[%emt 0:01:30]} Na5 {[%emt 0:00:54]} 27. Ba2 {[%emt 0:00:37]} b6 {[%emt 0:01:15]} 28. Rf2 {[%emt 0:01:42]} f5 {[%emt 0:05:32]} 29. gxf5 {[%emt 0:02:53]} Qxf5 {[%emt 0:00:51]} 30. Qxf5 {[%emt 0:00:33]} gxf5 {[%emt 0:00:05]} 31. Rxf5 {[%emt 0:01:45]} Kg6 {[%emt 0:02:39]} 32. Bb1 {[%emt 0:04:32]} Kg7 {[%emt 0:02:10]} 33. cxb6 {[%emt 0:01:43]} axb6 {[%emt 0:00:14]} 34. Kf2 {[%emt 0:02:43]} Nc4 {[%emt 0:00:31]} 35. Rf3 {[%emt 0:02:22]} Ra7 {[%emt 0:02:44]} 36. Bd3 {[%emt 0:01:58]} Nb2 {[%emt 0:00:34]} 37. Be4 {[%emt 0:01:32]} c5 {[%emt 0:00:53]} 38. dxc5 {[%emt 0:01:53]} bxc5 {[%emt 0:00:01]} 39. Rf5 {[%emt 0:01:35]} Nd1+ {[%emt 0:00:15]} 40. Kf3 {[%emt 0:00:52]} Nxc3 {[%emt 0:00:30]} 41. Bc2 {[%emt 0:00:30]} Ra5 {[%emt 0:00:24]} 42. a4 {[%emt 0:00:00]} Nxa4 {[%emt 0:00:42]} 43. Bxa4 {[%emt 0:00:04]} Rxa4 {[%emt 0:00:28]} 44. Rxc5 {[%emt 0:00:30]} 1/2-1/2

[Event "Turkish Club Cup 2019"]
[Site "Konya"]
[Date "2019.07.19"]
[Round "6"]
[White "Salman, Ilhan Serhat"]
[Black "Daghan, Devran"]
[Result "1-0"]
[ECO "A41"]
[WhiteElo "1950"]
[BlackElo "2023"]
[Annotator "NA"]
[PlyCount "54"]
[EventDate "2019.07.16"]
[EventType "team-tourn"]
[EventCountry "TUR"]
[SourceTitle "playchess.com"]
[Source "ChessBase"]
[SourceQuality "1"]
[TimeControl "5400+30"]

1. d4 {[%emt 0:00:30]} g6 {[%emt 0:00:30]} 2. Nf3 {[%emt 0:00:30]} Bg7 {[%emt 0:00:00]} 3. g3 {[%emt 0:00:30]} d6 {[%emt 0:00:00]} 4. Bg2 {[%emt 0:00:30]} Nd7 {[%emt 0:00:00]} 5. O-O {[%emt 0:00:00]} e5 $11 {[%emt 0:01:00]} 6. dxe5 {[%emt 0:00:00]} dxe5 {[%emt 0:00:00]} 7. Nc3 {[%emt 0:01:30]} Ne7 {[%emt 0:01:00]} 8. e4 {[%emt 0:02:30]} O-O {[%emt 0:02:30]} 9. Be3 {[%emt 0:02:30]} c6 {[%emt 0:05:30]} 10. Qd6 {[%emt 0:02:30]} Re8 {[%emt 0:03:30]} 11. Rad1 {[%emt 0:02:30]} Bf8 {[%emt 0:11:30]} 12. Qd2 {[%emt 0:12:30]} Qc7 {[%emt 0:08:30]} 13. Ng5 {[%emt 0:21:30]} h6 {[%emt 0:17:30]} 14. Nh3 {[%emt 0:01:30]} Kh7 {[%emt 0:10:30]} 15. f4 {[%emt 0:01:30]} Ng8 {[%emt 0:04:30]} 16. Nf2 {[%emt 0:03:30]} Ndf6 {[%emt 0:16:51]} 17. fxe5 {[%emt 0:04:30]} Qxe5 {[%emt 0:00:28]} 18. Nd3 {[%emt 0:08:30]} Qe7 {[%emt 0:05:01]} 19. e5 {[%emt 0:13:01]} Ng4 {[%emt 0:01:59]} 20. Bc5 {[%emt 0:01:20]} Qc7 {[%emt 0:00:11]} 21. Bd4 {[%emt 0:06:26]} Bg7 {[%emt 0:03:57]} 22. Qf4 {[%emt 0:01:52]} Bf5 {[%emt 0:00:53]} 23. Be4 {[%emt 0:01:40]} Bxe4 {[%emt 0:00:45]} 24. Nxe4 {[%emt 0:00:33]} c5 {[%emt 0:03:42]} 25. Bc3 {[%emt 0:01:53]} c4 {[%emt 0:01:13]} 26. Qxg4 {[%emt 0:00:45]} cxd3 {[%emt 0:00:33]} 27. Rxd3 {[%emt 0:00:25]} Bf8 {[%emt 0:01:27]} 1-0

[Event "Turkish Club Cup 2019"]
[Site "Konya"]
[Date "2019.07.19"]
[Round "6"]
[White "Celiker, Yakup"]
[Black "Cetinkaya, Vedat Ali"]
[Result "1/2-1/2"]
[ECO "A03"]
[WhiteElo "1930"]
[BlackElo "2074"]
[Annotator "NA"]
[PlyCount "60"]
[EventDate "2019.07.16"]
[EventType "team-tourn"]
[EventCountry "TUR"]
[SourceTitle "playchess.com"]
[Source "ChessBase"]
[SourceQuality "1"]
[TimeControl "5400+30"]

1. f4 {[%emt 0:00:30]} d5 {[%emt 0:01:30]} 2. b3 {[%emt 0:00:30]} Nf6 {[%emt 0:01:30]} 3. Bb2 {[%emt 0:02:30]} c5 {[%emt 0:00:30]} 4. Nf3 {[%emt 0:00:30]} Nc6 {[%emt 0:00:30]} 5. e3 {[%emt 0:00:30]} Bg4 {[%emt 0:01:30]} 6. Be2 {[%emt 0:00:30]} e6 {[%emt 0:02:30]} 7. O-O {[%emt 0:04:30]} Be7 {[%emt 0:08:30]} 8. Ne5 {[%emt 0:01:30]} Bxe2 {[%emt 0:00:30]} 9. Qxe2 {[%emt 0:00:00]} Qc7 {[%emt 0:02:30]} 10. a4 {[%emt 0:04:00]} O-O {[%emt 0:02:30]} 11. d3 {[%emt 0:05:30]} Rad8 {[%emt 0:03:30]} 12. Nd2 {[%emt 0:05:30]} d4 {[%emt 0:03:30]} 13. Nxc6 {[%emt 0:00:30]} Qxc6 {[%emt 0:00:30]} 14. e4 {[%emt 0:00:30]} Qc7 {[%emt 0:06:30]} 15. Nc4 {[%emt 0:01:30]} Ne8 {[%emt 0:12:30]} 16. f5 {[%emt 0:06:30]} exf5 {[%emt 0:08:30]} 17. Rxf5 {[%emt 0:01:30]} Nd6 {[%emt 0:00:30]} 18. Nxd6 {[%emt 0:03:30]} Rxd6 {[%emt 0:00:30]} 19. Raf1 {[%emt 0:03:30]} Rh6 {[%emt 0:02:30]} 20. g3 {[%emt 0:02:30]} Rg6 {[%emt 0:00:30]} 21. Bc1 {[%emt 0:02:30]} Bd6 {[%emt 0:07:30]} 22. Bf4 {[%emt 0:11:30]} Re6 {[%emt 0:04:30]} 23. Bxd6 {[%emt 0:00:30]} Qxd6 {[%emt 0:00:30]} 24. Qf3 {[%emt 0:00:30]} f6 {[%emt 0:01:30]} 25. Rd5 {[%emt 0:02:30]} Qe7 {[%emt 0:00:30]} 26. Rf5 {[%emt 0:05:30]} Re8 {[%emt 0:01:30]} 27. g4 {[%emt 0:00:00]} Re5 {[%emt 0:01:30]} 28. Kg2 {[%emt 0:02:00]} Qf7 {[%emt 0:02:30]} 29. h3 {[%emt 0:05:30]} Qg6 {[%emt 0:00:30]} 30. Qg3 {[%emt 0:00:30]} h6 {[%emt 0:02:30]} 1/2-1/2

[Event "Turkish Club Cup 2019"]
[Site "Konya"]
[Date "2019.07.19"]
[Round "6"]
[White "Sayin, Atakan"]
[Black "Cevrin, Muhammed Cemre"]
[Result "1/2-1/2"]
[ECO "B51"]
[WhiteElo "1925"]
[BlackElo "1860"]
[Annotator "NA"]
[PlyCount "62"]
[EventDate "2019.07.16"]
[EventType "team-tourn"]
[EventCountry "TUR"]
[SourceTitle "playchess.com"]
[Source "ChessBase"]
[SourceQuality "1"]
[TimeControl "5400+30"]

1. e4 {[%emt 0:00:30]} c5 {[%emt 0:00:30]} 2. Nf3 {[%emt 0:00:00]} d6 {[%emt 0:00:30]} 3. Bb5+ {[%emt 0:02:00]} Nd7 {[%emt 0:06:30]} 4. O-O {[%emt 0:03:30]} a6 {[%emt 0:02:30]} 5. Bd3 {[%emt 0:03:30]} Ngf6 {[%emt 0:01:30]} 6. c3 {[%emt 0:05:30]} g6 {[%emt 0:10:30]} 7. Re1 {[%emt 0:05:30]} Bg7 {[%emt 0:02:30]} 8. Bc2 {[%emt 0:03:30]} O-O {[%emt 0:06:30]} 9. d4 {[%emt 0:04:30]} e5 {[%emt 0:06:30]} 10. dxe5 {[%emt 0:02:30]} Nxe5 {[%emt 0:02:30]} 11. Nxe5 {[%emt 0:02:30]} dxe5 {[%emt 0:00:30]} 12. Qxd8 {[%emt 0:01:30]} Rxd8 {[%emt 0:00:30]} 13. Be3 {[%emt 0:00:30]} b6 {[%emt 0:04:30]} 14. h3 {[%emt 0:06:30]} Be6 {[%emt 0:00:30]} 15. Nd2 {[%emt 0:00:30]} Ne8 {[%emt 0:02:30]} 16. a4 {[%emt 0:01:30]} a5 {[%emt 0:00:00]} 17. Rad1 {[%emt 0:02:30]} Rd7 {[%emt 0:00:00]} 18. Nf3 {[%emt 0:01:30]} Rxd1 {[%emt 0:01:30]} 19. Rxd1 {[%emt 0:00:30]} f6 {[%emt 0:00:30]} 20. Kf1 {[%emt 0:01:30]} Kf7 {[%emt 0:00:00]} 21. Ke1 {[%emt 0:01:30]} Ke7 {[%emt 0:01:00]} 22. b3 {[%emt 0:00:30]} Rd8 {[%emt 0:00:30]} 23. Rxd8 {[%emt 0:00:30]} Kxd8 {[%emt 0:00:30]} 24. Nd2 {[%emt 0:00:30]} Nd6 {[%emt 0:00:30]} 25. f3 {[%emt 0:00:30]} Kc7 {[%emt 0:00:00]} 26. Bd3 {[%emt 0:04:30]} Bf8 {[%emt 0:00:00]} 27. Nc4 {[%emt 0:00:00]} Nxc4 {[%emt 0:01:30]} 28. Bxc4 {[%emt 0:00:00]} Bxc4 {[%emt 0:00:00]} 29. bxc4 {[%emt 0:00:30]} Kd7 {[%emt 0:00:00]} 30. Ke2 {[%emt 0:00:30]} Ke6 {[%emt 0:00:30]} 31. Kd3 {[%emt 0:00:00]} Bg7 {[%emt 0:00:30]} 1/2-1/2

[Event "Turkish Club Cup 2019"]
[Site "Konya"]
[Date "2019.07.19"]
[Round "6"]
[White "Oz, Ozan"]
[Black "Sarikas, Ertan"]
[Result "1-0"]
[ECO "B06"]
[WhiteElo "1923"]
[BlackElo "1612"]
[Annotator "NA"]
[PlyCount "117"]
[EventDate "2019.07.16"]
[EventType "team-tourn"]
[EventCountry "TUR"]
[SourceTitle "playchess.com"]
[Source "ChessBase"]
[SourceQuality "1"]
[TimeControl "5400+30"]

1. d4 {[%emt 0:00:30]} g6 {[%emt 0:00:30]} 2. Nc3 {[%emt 0:00:00]} Bg7 {[%emt 0:00:00]} 3. e4 {[%emt 0:00:00]} d6 {[%emt 0:01:00]} 4. Bf4 {[%emt 0:00:30]} c5 {[%emt 0:01:30]} 5. d5 {[%emt 0:01:30]} Qb6 {[%emt 0:13:30]} 6. Qc1 {[%emt 0:03:30]} Nf6 {[%emt 0:12:30]} 7. Bb5+ {[%emt 0:05:30]} Bd7 {[%emt 0:01:30]} 8. a4 {[%emt 0:02:30]} Bxb5 {[%emt 0:06:30]} 9. axb5 {[%emt 0:00:30]} Nbd7 {[%emt 0:01:30]} 10. Nge2 {[%emt 0:05:30]} O-O {[%emt 0:00:30]} 11. O-O {[%emt 0:00:00]} a6 {[%emt 0:03:30]} 12. bxa6 {[%emt 0:02:00]} Rxa6 {[%emt 0:00:30]} 13. Rb1 {[%emt 0:03:30]} Ng4 {[%emt 0:05:30]} 14. h3 {[%emt 0:03:30]} Nge5 {[%emt 0:01:30]} 15. Bh6 {[%emt 0:00:30]} Rfa8 {[%emt 0:02:30]} 16. Bxg7 {[%emt 0:11:30]} Kxg7 {[%emt 0:00:00]} 17. Qg5 {[%emt 0:01:30]} Nf6 {[%emt 0:05:00]} 18. Ng3 {[%emt 0:15:30]} e6 {[%emt 0:04:30]} 19. f4 {[%emt 0:06:30]} h6 {[%emt 0:03:30]} 20. Qh4 {[%emt 0:00:30]} Nc4 {[%emt 0:03:30]} 21. e5 {[%emt 0:06:30]} Ng8 {[%emt 0:02:30]} 22. dxe6 {[%emt 0:01:30]} fxe6 {[%emt 0:01:30]} 23. Qg4 {[%emt 0:04:30]} Ne3 {[%emt 0:06:30]} 24. Qxe6 {[%emt 0:00:30]} Nxf1 {[%emt 0:00:30]} 25. Nd5 {[%emt 0:04:30]} Qd8 {[%emt 0:02:30]} 26. Rxf1 {[%emt 0:01:02]} Qc8 {[%emt 0:02:39]} 27. f5 {[%emt 0:05:33]} Qxe6 {[%emt 0:03:34]} 28. fxe6 {[%emt 0:00:30]} Rf8 {[%emt 0:00:30]} 29. e7 {[%emt 0:00:30]} Rxf1+ {[%emt 0:00:14]} 30. Kxf1 {[%emt 0:02:07]} Nxe7 {[%emt 0:00:16]} 31. Nxe7 {[%emt 0:01:21]} dxe5 {[%emt 0:00:02]} 32. Ne4 {[%emt 0:00:41]} c4 {[%emt 0:02:01]} 33. Nd2 {[%emt 0:03:31]} Kf7 {[%emt 0:00:50]} 34. Nc8 {[%emt 0:00:17]} b5 {[%emt 0:00:16]} 35. Ne4 {[%emt 0:04:37]} Ra1+ {[%emt 0:03:21]} 36. Ke2 {[%emt 0:00:46]} Ke6 {[%emt 0:00:19]} 37. Kd2 {[%emt 0:04:03]} Kd5 {[%emt 0:02:26]} 38. Nc3+ {[%emt 0:00:29]} Kc5 {[%emt 0:00:17]} 39. Ne7 {[%emt 0:00:52]} Rg1 {[%emt 0:00:32]} 40. g3 {[%emt 0:00:32]} Rg2+ {[%emt 0:00:16]} 41. Ne2 {[%emt 0:00:14]} g5 {[%emt 0:07:01]} 42. Nf5 {[%emt 0:00:01]} Rh2 {[%emt 0:00:42]} 43. Nxh6 {[%emt 0:00:25]} Rxh3 {[%emt 0:00:59]} 44. Nf7 {[%emt 0:00:01]} b4 {[%emt 0:01:02]} 45. Nxg5 {[%emt 0:00:31]} Rh5 {[%emt 0:01:10]} 46. Ne4+ {[%emt 0:00:09]} Kc6 {[%emt 0:00:18]} 47. Ke3 {[%emt 0:01:46]} Rh8 {[%emt 0:00:33]} 48. g4 {[%emt 0:00:20]} Kd5 {[%emt 0:00:33]} 49. g5 {[%emt 0:00:42]} Ra8 {[%emt 0:01:16]} 50. c3 {[%emt 0:00:58]} b3 {[%emt 0:00:17]} 51. N2g3 {[%emt 0:00:30]} Ra2 {[%emt 0:00:22]} 52. g6 {[%emt 0:00:15]} Ke6 {[%emt 0:00:13]} 53. Nh5 {[%emt 0:00:46]} Ra8 {[%emt 0:01:26]} 54. g7 {[%emt 0:00:27]} Rd8 {[%emt 0:00:33]} 55. Nef6 {[%emt 0:00:12]} Rd3+ {[%emt 0:00:29]} 56. Ke2 {[%emt 0:00:40]} Rd8 {[%emt 0:00:30]} 57. g8=Q+ {[%emt 0:00:10]} Rxg8 {[%emt 0:00:38]} 58. Nxg8 {[%emt 0:00:30]} Kf5 {[%emt 0:00:00]} 59. Ke3 {[%emt 0:00:00]} 1-0

[Event "Turkish Club Cup 2019"]
[Site "Konya"]
[Date "2019.07.19"]
[Round "6"]
[White "Demirbas, Emre"]
[Black "Ince, Eray"]
[Result "1-0"]
[ECO "B01"]
[WhiteElo "1913"]
[BlackElo "1459"]
[Annotator "NA"]
[PlyCount "81"]
[EventDate "2019.07.16"]
[EventType "team-tourn"]
[EventCountry "TUR"]
[SourceTitle "playchess.com"]
[Source "ChessBase"]
[SourceQuality "1"]
[TimeControl "5400+30"]

1. e4 {[%emt 0:00:30]} d5 {[%emt 0:00:30]} 2. exd5 {[%emt 0:00:30]} Qxd5 {[%emt 0:00:30]} 3. Nc3 {[%emt 0:00:30]} Qd8 {[%emt 0:00:00]} 4. Nf3 {[%emt 0:00:00]} Nf6 {[%emt 0:00:00]} 5. Bc4 {[%emt 0:00:00]} e6 {[%emt 0:00:30]} 6. O-O {[%emt 0:01:30]} Bd6 {[%emt 0:00:30]} 7. d4 {[%emt 0:00:30]} O-O {[%emt 0:01:30]} 8. Bg5 {[%emt 0:01:30]} c6 {[%emt 0:01:30]} 9. Qe2 {[%emt 0:00:30]} Nbd7 {[%emt 0:01:30]} 10. Ne5 {[%emt 0:03:30]} Qa5 {[%emt 0:06:30]} 11. Nxf7 {[%emt 0:06:30]} Rxf7 {[%emt 0:01:30]} 12. Qxe6 {[%emt 0:00:00]} Ne5 {[%emt 0:00:30]} 13. Qxd6 {[%emt 0:03:00]} Nxc4 {[%emt 0:00:00]} 14. Qg3 {[%emt 0:00:30]} Nxb2 {[%emt 0:03:00]} 15. Bxf6 {[%emt 0:00:30]} Rxf6 {[%emt 0:00:30]} 16. Ne4 {[%emt 0:00:30]} Re6 {[%emt 0:01:30]} 17. Nc5 {[%emt 0:02:30]} Rg6 {[%emt 0:03:30]} 18. Qb3+ {[%emt 0:02:30]} Kh8 {[%emt 0:00:30]} 19. Rfe1 {[%emt 0:04:30]} Qd8 {[%emt 0:01:30]} 20. Qxb2 {[%emt 0:02:30]} Bh3 {[%emt 0:00:30]} 21. g3 {[%emt 0:00:30]} Qd5 {[%emt 0:00:30]} 22. Re4 {[%emt 0:00:30]} Re6 {[%emt 0:03:30]} 23. c4 {[%emt 0:04:30]} Qf5 {[%emt 0:01:30]} 24. Rf4 {[%emt 0:03:30]} Qxf4 {[%emt 0:02:30]} 25. Nxe6 {[%emt 0:00:30]} Qh6 {[%emt 0:04:30]} 26. Nf4 {[%emt 0:00:30]} Bg4 {[%emt 0:07:30]} 27. Re1 {[%emt 0:01:30]} Rf8 {[%emt 0:01:30]} 28. d5 {[%emt 0:03:30]} cxd5 {[%emt 0:02:30]} 29. cxd5 {[%emt 0:01:30]} b6 {[%emt 0:03:30]} 30. Qd4 {[%emt 0:02:30]} Rd8 {[%emt 0:05:30]} 31. Ne6 {[%emt 0:06:30]} Bxe6 {[%emt 0:02:30]} 32. dxe6 {[%emt 0:00:30]} Qf6 {[%emt 0:05:30]} 33. e7 {[%emt 0:05:30]} Re8 {[%emt 0:02:30]} 34. Qd7 {[%emt 0:00:30]} Qg6 {[%emt 0:00:30]} 35. h4 {[%emt 0:04:30]} Kg8 {[%emt 0:00:30]} 36. Re3 {[%emt 0:02:30]} a6 {[%emt 0:02:30]} 37. Rc3 {[%emt 0:02:30]} Qb1+ {[%emt 0:01:30]} 38. Kh2 {[%emt 0:00:30]} Qb5 {[%emt 0:00:30]} 39. Qe6+ {[%emt 0:00:30]} Kh8 {[%emt 0:00:00]} 40. Rf3 {[%emt 0:00:00]} Qc5 {[%emt 0:02:00]} 41. Qf7 {[%emt 0:00:00]} 1-0

[Event "Turkish Club Cup 2019"]
[Site "Konya"]
[Date "2019.07.19"]
[Round "6"]
[White "Guner, Sati Emre"]
[Black "Yasin, Hur"]
[Result "0-1"]
[ECO "C02"]
[WhiteElo "1912"]
[BlackElo "1953"]
[Annotator "NA"]
[PlyCount "59"]
[EventDate "2019.07.16"]
[EventType "team-tourn"]
[EventCountry "TUR"]
[SourceTitle "playchess.com"]
[Source "ChessBase"]
[SourceQuality "1"]
[TimeControl "5400+30"]

1. e4 {[%emt 0:00:30]} e6 2. d4 {[%emt 0:00:00]} d5 {[%emt 0:01:00]} 3. e5 {[%emt 0:00:00]} c5 {[%emt 0:00:00]} 4. c3 {[%emt 0:00:30]} Nc6 {[%emt 0:00:00]} 5. Nf3 {[%emt 0:00:30]} Bd7 {[%emt 0:00:30]} 6. Be2 {[%emt 0:00:30]} f6 {[%emt 0:00:30]} 7. O-O {[%emt 0:01:30]} Qc7 {[%emt 0:00:00]} 8. Re1 {[%emt 0:00:30]} O-O-O {[%emt 0:00:00]} 9. Bf4 {[%emt 0:02:30]} h6 {[%emt 0:00:30]} 10. c4 {[%emt 0:14:30]} dxc4 {[%emt 0:19:30]} 11. Bxc4 {[%emt 0:05:30]} cxd4 {[%emt 0:05:30]} 12. Nxd4 {[%emt 0:13:30]} Nxd4 {[%emt 0:06:30]} 13. Qxd4 {[%emt 0:02:30]} Bc5 {[%emt 0:00:30]} 14. Qc3 {[%emt 0:01:30]} g5 {[%emt 0:08:30]} 15. Be3 {[%emt 0:03:30]} Bxe3 {[%emt 0:00:30]} 16. Qxe3 {[%emt 0:01:30]} Qxc4 {[%emt 0:00:30]} 17. Na3 {[%emt 0:02:30]} Qa6 {[%emt 0:01:30]} 18. exf6 {[%emt 0:00:30]} Kb8 {[%emt 0:02:30]} 19. Rad1 {[%emt 0:02:30]} Qb6 {[%emt 0:07:30]} 20. Rxd7 {[%emt 0:03:30]} Rxd7 {[%emt 0:05:30]} 21. Qe5+ {[%emt 0:04:30]} Ka8 {[%emt 0:05:30]} 22. Nc4 {[%emt 0:00:00]} Qd4 {[%emt 0:11:30]} 23. f7 {[%emt 0:06:00]} Ne7 {[%emt 0:05:50]} 24. Qxe6 {[%emt 0:01:30]} Nc6 {[%emt 0:00:36]} 25. h3 {[%emt 0:09:30]} Nd8 {[%emt 0:00:35]} 26. Qf5 {[%emt 0:06:32]} Nxf7 {[%emt 0:00:30]} 27. Re4 {[%emt 0:00:33]} Qd5 {[%emt 0:01:35]} 28. Qg6 {[%emt 0:01:49]} Rc8 {[%emt 0:03:13]} 29. b3 {[%emt 0:00:22]} Nd6 {[%emt 0:01:48]} 30. Rg4 {[%emt 0:02:52]} 0-1

[Event "Turkish Club Cup 2019"]
[Site "Konya"]
[Date "2019.07.19"]
[Round "6"]
[White "Yanik, Emine"]
[Black "Simsek, Meltem"]
[Result "0-1"]
[ECO "D04"]
[WhiteElo "1911"]
[BlackElo "1684"]
[Annotator "NA"]
[PlyCount "54"]
[EventDate "2019.07.16"]
[EventType "team-tourn"]
[EventCountry "TUR"]
[SourceTitle "playchess.com"]
[Source "ChessBase"]
[SourceQuality "1"]
[TimeControl "5400+30"]

1. d4 {[%emt 0:00:30]} Nf6 {[%emt 0:00:30]} 2. Nf3 {[%emt 0:00:00]} d5 {[%emt 0:00:30]} 3. e3 {[%emt 0:00:00]} g6 {[%emt 0:00:00]} 4. Bd3 {[%emt 0:00:30]} Bg7 {[%emt 0:00:00]} 5. Nbd2 {[%emt 0:00:30]} O-O {[%emt 0:07:30]} 6. b3 {[%emt 0:00:30]} c6 {[%emt 0:01:30]} 7. Bb2 {[%emt 0:00:30]} Nbd7 {[%emt 0:02:30]} 8. O-O {[%emt 0:00:30]} Re8 {[%emt 0:00:30]} 9. c4 {[%emt 0:06:30]} e5 {[%emt 0:03:30]} 10. dxe5 {[%emt 0:03:30]} Ng4 {[%emt 0:00:30]} 11. cxd5 {[%emt 0:01:30]} Ndxe5 {[%emt 0:02:30]} 12. Nxe5 {[%emt 0:06:30]} Nxe5 {[%emt 0:00:30]} 13. Bc2 {[%emt 0:06:30]} Qxd5 {[%emt 0:00:30]} 14. e4 {[%emt 0:02:30]} Qd6 {[%emt 0:01:30]} 15. Rb1 {[%emt 0:21:30]} Bg4 {[%emt 0:09:30]} 16. f3 {[%emt 0:16:30]} Be6 {[%emt 0:00:30]} 17. Kh1 {[%emt 0:07:30]} Rad8 {[%emt 0:03:30]} 18. Bxe5 {[%emt 0:07:11]} Bxe5 {[%emt 0:01:30]} 19. Nc4 {[%emt 0:01:24]} Qc7 {[%emt 0:00:30]} 20. Qc1 {[%emt 0:00:38]} Bf4 {[%emt 0:00:30]} 21. Qa3 {[%emt 0:02:19]} b5 {[%emt 0:00:30]} 22. Na5 {[%emt 0:02:51]} Rd2 {[%emt 0:01:30]} 23. Bd1 {[%emt 0:02:02]} Bxh2 {[%emt 0:00:30]} 24. Rb2 {[%emt 0:00:30]} Red8 {[%emt 0:01:30]} 25. Nxc6 {[%emt 0:01:10]} Rxd1 {[%emt 0:05:30]} 26. Rb1 {[%emt 0:01:53]} Rxf1+ {[%emt 0:00:00]} 27. Rxf1 {[%emt 0:00:26]} Qxc6 {[%emt 0:00:00]} 0-1